fUSD/lending_fUSD_20250617
["ID","MTS","AMOUNT","RATE_DAILY","PERIOD"]
[366347734,1750200663716,-2086.41,0.00016602,2]
[366347735,1750200663726,-490.0,0.00016602,2]
[366347736,1750200663736,-490.0,0.00016602,2]
[366347737,1750200663745,-686.82,0.00016602,2]
[366347738,1750200663755,-490.0,0.00016602,2]
[366347739,1750200663765,-2248.49,0.00016602,2]
[366347740,1750200663775,-2069.48,0.00016602,2]
[366347741,1750200663786,-673.87,0.00016602,2]
[366347742,1750200663799,-648.05,0.00016602,2]
[366347743,1750200663811,-841.88,0.00016602,2]
[366347744,1750200663822,-490.0,0.00016602,2]
[366347745,1750200663837,-1421.52,0.00016602,2]
[366347746,1750200663942,-490.0,0.00016602,2]
[366347747,1750200663952,-660.26,0.00016602,2]
[366347748,1750200663961,-490.0,0.00016602,2]
[366347749,1750200663972,-490.0,0.00016602,2]
[366347750,1750200663981,-534.05,0.00016602,2]
[366347751,1750200663991,-490.0,0.00016602,2]
[366347752,1750200664000,-1554.25,0.00016602,2]
[366347753,1750200664010,-490.0,0.00016602,2]
[366347754,1750200664020,-490.0,0.00016602,2]
[366347755,1750200664029,-490.0,0.00016602,2]
[366347756,1750200664039,-2966.3,0.00016602,2]
[366347757,1750200664049,-150.0,0.00016602,2]
[366347758,1750200664058,-421.40294096,0.00016602,2]
[366347759,1750200664068,-490.0,0.00016602,2]
[366347760,1750200664077,-1427.03,0.00016602,2]
[366347761,1750200664087,-201.14694014,0.00016602,2]
[366347762,1750200664097,-490.0,0.00016602,2]
[366347763,1750200664107,-490.0,0.00016602,2]
[366347764,1750200664116,-500.0,0.00016602,2]
[366347765,1750200664126,-150.0,0.00016602,2]
[366347766,1750200664135,-500.0,0.00016602,2]
[366347767,1750200664145,-1485.9,0.00016602,2]
[366347768,1750200664155,-490.0,0.00016602,2]
[366347769,1750200664164,-2376.69,0.00016602,2]
[366347770,1750200664174,-490.0,0.00016602,2]
[366347771,1750200664184,-490.0,0.00016602,2]
[366347772,1750200664194,-1520.45,0.00016602,2]
[366347773,1750200664203,-490.0,0.00016602,2]
[366347774,1750200664212,-151.0,0.00016602,2]
[366347775,1750200664222,-490.0,0.00016602,2]
[366347776,1750200664232,-151.0,0.00016602,2]
[366347777,1750200664241,-151.0,0.00016602,2]
[366347778,1750200664251,-192.71292,0.00016602,2]
[366347779,1750200664261,-490.0,0.00016602,2]
[366347780,1750200664271,-490.0,0.00016602,2]
[366347781,1750200664281,-490.0,0.00016602,2]
[366347782,1750200664292,-569.188376,0.00016602,2]
[366347783,1750200664302,-151.0,0.00016602,2]
[366347784,1750200664313,-490.0,0.00016602,2]
[366347785,1750200664323,-569.188376,0.00016602,2]
[366347786,1750200664333,-490.0,0.00016602,2]
[366347787,1750200664344,-1478.73,0.00016602,2]
[366347788,1750200664354,-1525.16,0.00016602,2]
[366347789,1750200664362,-569.188376,0.00016602,2]
[366347790,1750200664372,-490.0,0.00016602,2]
[366347791,1750200664382,-569.188376,0.00016602,2]
[366347792,1750200664391,-569.188376,0.00016602,2]
[366347793,1750200664400,-569.188376,0.00016602,2]
[366347794,1750200664410,-490.0,0.00016602,2]
[366347795,1750200664420,-490.0,0.00016602,2]
[366347796,1750200664430,-2123.21,0.00016602,2]
[366347797,1750200664440,-569.188376,0.00016602,2]
[366347798,1750200664449,-569.188376,0.00016602,2]
[366347799,1750200664459,-569.188376,0.00016602,2]
[366347800,1750200664469,-569.188376,0.00016602,2]
[366347801,1750200664479,-490.0,0.00016602,2]
[366347802,1750200664490,-569.188376,0.00016602,2]
[366347803,1750200664499,-569.188372,0.00016602,2]
[366347804,1750200664511,-1237.99,0.00016602,2]
[366347805,1750200664520,-1934.96,0.00016602,2]
[366347806,1750200664530,-490.0,0.00016602,2]
[366347807,1750200664540,-1124.29,0.00016602,2]
[366347808,1750200664550,-490.0,0.00016602,2]
[366347809,1750200664560,-1482.16,0.00016602,2]
[366347810,1750200664570,-490.0,0.00016602,2]
[366347811,1750200664579,-1404.534588,0.00016602,2]
[366347812,1750200664591,-1404.534588,0.00016602,2]
[366347813,1750200664600,-1404.534588,0.00016602,2]
[366347814,1750200664610,-1404.534588,0.00016602,2]
[366347815,1750200664620,-490.0,0.00016602,2]
[366347816,1750200664630,-605.75,0.00016602,2]
[366347817,1750200664639,-1404.534588,0.00016602,2]
[366347818,1750200664649,-737.32,0.00016602,2]
[366347819,1750200664659,-490.0,0.00016602,2]
[366347820,1750200664669,-1404.534588,0.00016602,2]
[366347821,1750200664679,-490.0,0.00016602,2]
[366347822,1750200664689,-1404.534588,0.00016602,2]
[366347823,1750200664699,-1404.534588,0.00016602,2]
[366347824,1750200664709,-490.0,0.00016602,2]
[366347825,1750200664718,-1404.534588,0.00016602,2]
[366347826,1750200664728,-1404.534588,0.00016602,2]
[366347827,1750200664738,-2399.65,0.00016602,2]
[366347828,1750200664747,-490.0,0.00016602,2]
[366347829,1750200664757,-490.0,0.00016602,2]
[366347830,1750200664767,-490.0,0.00016602,2]
[366347831,1750200664776,-490.0,0.00016602,2]
[366347832,1750200664786,-490.0,0.00016602,2]
[366347833,1750200664799,-490.0,0.00016602,2]
[366347834,1750200664808,-708.12,0.00016602,2]
[366347835,1750200664818,-1296.65,0.00016602,2]
[366347836,1750200664828,-490.0,0.00016602,2]
[366347837,1750200664838,-761.88,0.00016602,2]
[366347838,1750200664848,-490.0,0.00016602,2]
[366347839,1750200664858,-490.0,0.00016602,2]
[366347840,1750200664867,-490.72,0.00016602,2]
[366347841,1750200664877,-490.0,0.00016602,2]
[366347842,1750200664887,-490.0,0.00016602,2]
[366347843,1750200664896,-858.69,0.00016602,2]
[366347844,1750200664906,-845.23,0.00016602,2]
[366347845,1750200664916,-1254.27,0.00016602,2]
[366347846,1750200664926,-490.0,0.00016602,2]
[366347847,1750200664936,-278.27072118,0.00016602,2]
[366347848,1750200664946,-403.89348079,0.00016602,2]
[366347849,1750200664957,-490.0,0.00016602,2]
[366347850,1750200664966,-151.0,0.00016602,2]
[366347851,1750200664976,-490.0,0.00016602,2]
[366347852,1750200664986,-151.0,0.00016602,2]
[366347853,1750200664995,-490.0,0.00016602,2]
[366347854,1750200665005,-490.0,0.00016602,2]
[366347855,1750200665015,-151.0,0.00016602,2]
[366347856,1750200665026,-151.0,0.00016602,2]
[366347857,1750200665036,-202.312125,0.00016602,2]
[366347858,1750200665046,-490.0,0.00016602,2]
[366347859,1750200665056,-517.37,0.00016602,2]
[366347860,1750200665066,-490.0,0.00016602,2]
[366347861,1750200665076,-490.0,0.00016602,2]
[366347862,1750200665085,-490.0,0.00016602,2]
[366347863,1750200665095,-490.0,0.00016602,2]
[366347864,1750200665105,-490.0,0.00016602,2]
[366347865,1750200665115,-490.0,0.00016602,2]
[366347866,1750200665124,-317.03070094,0.00016602,2]
[366347867,1750200665134,-490.0,0.00016602,2]
[366347868,1750200665144,-2205.52,0.00016602,2]
[366347869,1750200665154,-495.19,0.00016602,2]
[366347870,1750200665163,-490.0,0.00016602,2]
[366347871,1750200665173,-490.0,0.00016602,2]
[366347872,1750200665182,-971.35,0.00016602,2]
[366347873,1750200665192,-490.0,0.00016602,2]
[366347874,1750200665202,-300.60812633,0.00016602,2]
[366347875,1750200665212,-1474.16,0.00016602,2]
[366347876,1750200665222,-490.0,0.00016602,2]
[366347877,1750200665232,-1053.89,0.00016602,2]
[366347878,1750200665243,-546.61,0.00016602,2]
[366347879,1750200665253,-227.23598199,0.00016602,2]
[366347880,1750200665263,-385.10812562,0.00016602,2]
[366347881,1750200665273,-490.0,0.00016602,2]
[366347882,1750200665282,-490.0,0.00016602,2]
[366347883,1750200665292,-490.0,0.00016602,2]
[366347884,1750200665301,-460.0,0.00016602,2]
[366347885,1750200665311,-506.14,0.00016602,2]
[366347886,1750200665321,-490.0,0.00016602,2]
[366347887,1750200665330,-2487.88,0.00016602,2]
[366347888,1750200665339,-528.79,0.00016602,2]
[366347889,1750200665349,-692.13,0.00016602,2]
[366347890,1750200665359,-583.29,0.00016602,2]
[366347891,1750200665369,-490.0,0.00016602,2]
[366347892,1750200665378,-420.291554,0.00016602,2]
[366347893,1750200665387,-609.5,0.00016602,2]
[366347894,1750200665396,-1202.04,0.00016602,2]
[366347895,1750200665405,-810.41,0.00016602,2]
[366347896,1750200665414,-420.291554,0.00016602,2]
[366347897,1750200665424,-420.291554,0.00016602,2]
[366347898,1750200665433,-420.291554,0.00016602,2]
[366347899,1750200665443,-420.291554,0.00016602,2]
[366347900,1750200665452,-490.0,0.00016602,2]
[366347901,1750200665462,-570.71,0.00016602,2]
[366347902,1750200665471,-556.65,0.00016602,2]
[366347903,1750200665481,-420.291554,0.00016602,2]
[366347904,1750200665490,-420.291554,0.00016602,2]
[366347905,1750200665500,-420.291554,0.00016602,2]
[366347906,1750200665510,-461.826056,0.00016602,2]
[366347907,1750200665520,-420.291554,0.00016602,2]
[366347908,1750200665529,-461.826056,0.00016602,2]
[366347909,1750200665539,-1483.0,0.00016602,2]
[366347910,1750200665548,-420.291562,0.00016602,2]
[366347911,1750200665557,-461.826056,0.00016602,2]
[366347912,1750200665567,-461.826056,0.00016602,2]
[366347913,1750200665576,-2840.51,0.00016602,2]
[366347914,1750200665586,-461.826056,0.00016602,2]
[366347915,1750200665596,-461.826056,0.00016602,2]
[366347916,1750200665606,-617.82,0.00016602,2]
[366347917,1750200665616,-490.0,0.00016602,2]
[366347918,1750200665626,-931.49,0.00016602,2]
[366347919,1750200665636,-461.826056,0.00016602,2]
[366347920,1750200665646,-461.826056,0.00016602,2]
[366347921,1750200665655,-461.826056,0.00016602,2]
[366347922,1750200665666,-461.826056,0.00016602,2]
[366347923,1750200665675,-461.826056,0.00016602,2]
[366347924,1750200665684,-2127.388849,0.00016602,2]
[366347925,1750200665694,-461.826048,0.00016602,2]
[366347926,1750200665704,-2127.388849,0.00016602,2]
[366347927,1750200665714,-490.0,0.00016602,2]
[366347928,1750200665722,-599.23,0.00016602,2]
[366347929,1750200665732,-2127.388849,0.00016602,2]
[366347930,1750200665742,-490.0,0.00016602,2]
[366347931,1750200665752,-2127.388849,0.00016602,2]
[366347932,1750200665763,-490.0,0.00016602,2]
[366347933,1750200665773,-498.81,0.00016602,2]
[366347934,1750200665782,-2127.388849,0.00016602,2]
[366347935,1750200665796,-1231.07,0.00016602,2]
[366347936,1750200665806,-2127.388849,0.00016602,2]
[366347937,1750200665815,-2127.388849,0.00016602,2]
[366347938,1750200665826,-2127.388849,0.00016602,2]
[366347939,1750200665837,-490.0,0.00016602,2]
[366347940,1750200665847,-2127.388849,0.00016602,2]
[366347941,1750200665857,-2127.388847,0.00016602,2]
[366347942,1750200665868,-490.0,0.00016602,2]
[366347943,1750200665877,-490.0,0.00016602,2]
[366347944,1750200665887,-4592.45,0.00016602,2]
[366347945,1750200665897,-802.33,0.00016602,2]
[366347946,1750200665906,-2768.07,0.00016602,2]
[366347947,1750200665916,-151.0,0.00016602,2]
[366347948,1750200665926,-490.0,0.00016602,2]
[366347949,1750200665936,-490.0,0.00016602,2]
[366347950,1750200665945,-151.0,0.00016602,2]
[366347951,1750200665955,-292.08461881,0.00016602,2]
[366347952,1750200665964,-151.0,0.00016602,2]
[366347953,1750200665974,-490.0,0.00016602,2]
[366347954,1750200665984,-490.0,0.00016602,2]
[366347955,1750200665994,-1906.66,0.00016602,2]
[366347956,1750200666004,-812.5,0.00016602,2]
[366347957,1750200666014,-670.53,0.00016602,2]
[366347958,1750200666024,-490.0,0.00016602,2]
[366347959,1750200666034,-490.0,0.00016602,2]
[366347960,1750200666044,-490.0,0.00016602,2]
[366347961,1750200666054,-921.77,0.00016602,2]
[366347962,1750200666063,-490.0,0.00016602,2]
[366347963,1750200666073,-490.0,0.00016602,2]
[366347964,1750200666082,-540.99,0.00016602,2]
[366347965,1750200666092,-658.86,0.00016602,2]
[366347966,1750200666102,-1348.28,0.00016602,2]
[366347967,1750200666111,-490.0,0.00016602,2]
[366347968,1750200666120,-490.0,0.00016602,2]
[366347969,1750200666129,-490.0,0.00016602,2]
[366347970,1750200666140,-1234.38,0.00016602,2]
[366347971,1750200666149,-490.0,0.00016602,2]
[366347972,1750200666159,-490.0,0.00016602,2]
[366347973,1750200666168,-490.0,0.00016602,2]
[366347974,1750200666178,-490.0,0.00016602,2]
[366347975,1750200666188,-1412.94,0.00016602,2]
[366347976,1750200666198,-490.0,0.00016602,2]
[366347977,1750200666207,-6766.3,0.00016602,2]
[366347978,1750200666218,-551.92,0.00016602,2]
[366347979,1750200666228,-824.21,0.00016602,2]
[366347980,1750200666237,-7330.51,0.00016602,2]
[366347981,1750200666247,-490.0,0.00016602,2]
[366347982,1750200666257,-490.0,0.00016602,2]
[366347983,1750200666268,-490.0,0.00016602,2]
[366347984,1750200666277,-151.0,0.00016602,2]
[366347985,1750200666287,-1872.59,0.00016602,2]
[366347986,1750200666297,-228.226714,0.00016602,2]
[366347987,1750200666307,-365.53,0.00016602,2]
[366347988,1750200666316,-750.72,0.00016602,2]
[366347989,1750200666326,-490.0,0.00016602,2]
[366347990,1750200666336,-1135.17,0.00016602,2]
[366347991,1750200666345,-490.0,0.00016602,2]
[366347992,1750200666355,-490.0,0.00016602,2]
[366347993,1750200666364,-490.0,0.00016602,2]
[366347994,1750200666374,-440.0,0.00016602,2]
[366347995,1750200666383,-490.0,0.00016602,2]
[366347996,1750200666394,-1857.12,0.00016602,2]
[366347997,1750200666404,-490.0,0.00016602,2]
[366347998,1750200666413,-1340.74,0.00016602,2]
[366347999,1750200666423,-583.83,0.00016602,2]
[366348000,1750200666434,-16124.31,0.00016602,2]
[366348001,1750200666443,-490.0,0.00016602,2]
[366348002,1750200666454,-2093.59,0.00016602,2]
[366348003,1750200666463,-574.35,0.00016602,2]
[366348004,1750200666473,-151.0,0.00016602,2]
[366348005,1750200666483,-490.0,0.00016602,2]
[366348006,1750200666492,-151.0,0.00016602,2]
[366348007,1750200666502,-527.19929728,0.00016602,2]
[366348008,1750200666511,-490.0,0.00016602,2]
[366348009,1750200666522,-490.0,0.00016602,2]
[366348010,1750200666533,-4135.51,0.00016602,2]
[366348011,1750200666543,-462.86586575,0.00016602,2]
[366348012,1750200666553,-490.0,0.00016602,2]
[366348013,1750200666563,-873.33,0.00016602,2]
[366348014,1750200666573,-490.0,0.00016602,2]
[366348015,1750200666584,-1423.95,0.00016602,2]
[366348016,1750200666594,-490.0,0.00016602,2]
[366348017,1750200666604,-490.0,0.00016602,2]
[366348018,1750200666614,-1069.97,0.00016602,2]
[366348019,1750200666624,-2875.49,0.00016602,2]
[366348020,1750200666635,-490.0,0.00016602,2]
[366348021,1750200666643,-1038.77,0.00016602,2]
[366348022,1750200666653,-1579.0,0.00016602,2]
[366348023,1750200666663,-9074.49,0.00016602,2]
[366348024,1750200666672,-659.26,0.00016602,2]
[366348025,1750200666681,-1005.16,0.00016602,2]
[366348026,1750200666691,-490.0,0.00016602,2]
[366348027,1750200666701,-1159.75,0.00016602,2]
[366348028,1750200666710,-1428.79,0.00016602,2]
[366348029,1750200666720,-2318.4,0.00016602,2]
[366348030,1750200666730,-3610.49,0.00016602,2]
[366348031,1750200666740,-490.0,0.00016602,2]
[366348032,1750200666750,-1446.43,0.00016602,2]
[366348033,1750200666760,-794.19,0.00016602,2]
[366348034,1750200666770,-1968.28,0.00016602,2]
[366348035,1750200666780,-490.0,0.00016602,2]
[366348036,1750200666793,-490.0,0.00016602,2]
[366348037,1750200666803,-490.0,0.00016602,2]
[366348038,1750200666813,-1827.57,0.00016602,2]
[366348039,1750200666823,-22676.83,0.00016602,2]
[366348040,1750200666832,-490.0,0.00016602,2]
[366348041,1750200666842,-490.0,0.00016602,2]
[366348042,1750200666852,-482.88782935,0.00016602,2]
[366348043,1750200666862,-330.01900504,0.00016602,2]
[366348044,1750200666872,-263.09,0.00016602,2]
[366348045,1750200666882,-1526.89,0.00016602,2]
[366348046,1750200666892,-894.69,0.00016602,2]
[366348047,1750200666901,-490.0,0.00016602,2]
[366348048,1750200666911,-490.0,0.00016602,2]
[366348049,1750200666921,-2649.27,0.00016602,2]
[366348050,1750200666931,-1050.73,0.00016602,2]
[366348051,1750200666940,-674.44,0.00016602,2]
[366348052,1750200666950,-490.0,0.00016602,2]
[366348053,1750200666960,-490.0,0.00016602,2]
[366348054,1750200666969,-2907.33,0.00016602,2]
[366348055,1750200666980,-490.0,0.00016602,2]
[366348056,1750200666989,-490.0,0.00016602,2]
[366348057,1750200666999,-490.0,0.00016602,2]
[366348058,1750200667009,-490.0,0.00016602,2]
[366348059,1750200667019,-938.0,0.00016602,2]
[366348060,1750200667030,-963.2,0.00016602,2]
[366348061,1750200667040,-490.0,0.00016602,2]
[366348062,1750200667050,-1468.87,0.00016602,2]
[366348063,1750200667060,-1968.44,0.00016602,2]
[366348064,1750200667070,-2145.73,0.00016602,2]
[366348065,1750200667080,-490.0,0.00016602,2]
[366348066,1750200667090,-217.123578,0.00016602,2]
[366348067,1750200667099,-4079.93,0.00016602,2]
[366348068,1750200667109,-490.0,0.00016602,2]
[366348069,1750200667119,-1842.43,0.00016602,2]
[366348070,1750200667128,-2215.92,0.00016602,2]
[366348071,1750200667138,-490.0,0.00016602,2]
[366348072,1750200667148,-155.79886,0.00016602,2]
[366348073,1750200667158,-1391.89,0.00016602,2]
[366348074,1750200667167,-155.79886,0.00016602,2]
[366348075,1750200667177,-155.79886,0.00016602,2]
[366348076,1750200667187,-155.79886,0.00016602,2]
[366348077,1750200667197,-490.0,0.00016602,2]
[366348078,1750200667206,-615.89,0.00016602,2]
[366348079,1750200667216,-490.0,0.00016602,2]
[366348080,1750200667226,-151.0,0.00016602,2]
[366348081,1750200667236,-3632.95,0.00016602,2]
[366348082,1750200667247,-3334.0,0.00016602,2]
[366348083,1750200667257,-151.0,0.00016602,2]
[366348084,1750200667268,-7532.51,0.00016602,2]
[366348085,1750200667279,-155.79886,0.00016602,2]
[366348086,1750200667289,-151.0,0.00016602,2]
[366348087,1750200667299,-155.79886,0.00016602,2]
[366348088,1750200667310,-155.79886,0.00016602,2]
[366348089,1750200667320,-155.79887,0.00016602,2]
[366348090,1750200667330,-490.0,0.00016602,2]
[366348091,1750200667341,-2261.26,0.00016602,2]
[366348092,1750200667351,-490.0,0.00016602,2]
[366348093,1750200667361,-490.0,0.00016602,2]
[366348094,1750200667371,-490.0,0.00016602,2]
[366348095,1750200667382,-490.0,0.00016602,2]
[366348096,1750200667393,-734.61,0.00016602,2]
[366348097,1750200667404,-490.0,0.00016602,2]
[366348098,1750200667415,-490.0,0.00016602,2]
[366348099,1750200667426,-820.43,0.00016602,2]
[366348100,1750200667437,-490.0,0.00016602,2]
[366348101,1750200667449,-490.0,0.00016602,2]
[366348102,1750200667459,-2561.5,0.00016602,2]
[366348103,1750200667469,-151.0,0.00016602,2]
[366348104,1750200667479,-1174.4,0.00016602,2]
[366348105,1750200667492,-151.0,0.00016602,2]
[366348106,1750200667502,-490.0,0.00016602,2]
[366348107,1750200667513,-151.0,0.00016602,2]
[366348108,1750200667523,-498.65,0.00016602,2]
[366348109,1750200667534,-490.0,0.00016602,2]
[366348110,1750200667545,-2983.35,0.00016602,2]
[366348111,1750200667555,-2037.9,0.00016602,2]
[366348112,1750200667565,-1140.795429,0.00016602,2]
[366348113,1750200667575,-490.0,0.00016602,2]
[366348114,1750200667585,-1140.795429,0.00016602,2]
[366348115,1750200667594,-3941.69,0.00016602,2]
[366348116,1750200667605,-1140.795429,0.00016602,2]
[366348117,1750200667615,-490.0,0.00016602,2]
[366348118,1750200667625,-526.97,0.00016602,2]
[366348119,1750200667635,-490.0,0.00016602,2]
[366348120,1750200667645,-490.0,0.00016602,2]
[366348121,1750200667655,-490.0,0.00016602,2]
[366348122,1750200667666,-490.0,0.00016602,2]
[366348123,1750200667676,-1140.795429,0.00016602,2]
[366348124,1750200667686,-1140.795429,0.00016602,2]
[366348125,1750200667696,-490.0,0.00016602,2]
[366348126,1750200667707,-1140.795429,0.00016602,2]
[366348127,1750200667717,-1140.795429,0.00016602,2]
[366348128,1750200667728,-618.28,0.00016602,2]
[366348129,1750200667738,-1140.795435,0.00016602,2]
[366348130,1750200667748,-490.0,0.00016602,2]
[366348131,1750200667758,-490.0,0.00016602,2]
[366348132,1750200667769,-490.0,0.00016602,2]
[366348133,1750200667779,-580.96,0.00016602,2]
[366348134,1750200667790,-178.169629,0.00016602,2]
[366348135,1750200667801,-178.169629,0.00016602,2]
[366348136,1750200667813,-178.169629,0.00016602,2]
[366348137,1750200667823,-178.169629,0.00016602,2]
[366348138,1750200667833,-9320.61,0.00016602,2]
[366348139,1750200667843,-5194.17,0.00016602,2]
[366348140,1750200667854,-490.0,0.00016602,2]
[366348141,1750200667865,-490.0,0.00016602,2]
[366348142,1750200667875,-1896.12,0.00016602,2]
[366348143,1750200667886,-490.0,0.00016602,2]
[366348144,1750200667896,-242.86662541,0.00016602,2]
[366348145,1750200667906,-490.0,0.00016602,2]
[366348146,1750200667916,-2818.18,0.00016602,2]
[366348147,1750200667926,-178.169629,0.00016602,2]
[366348148,1750200667936,-178.169629,0.00016602,2]
[366348149,1750200667946,-178.169629,0.00016602,2]
[366348150,1750200667957,-1859.25,0.00016602,2]
[366348151,1750200667967,-178.169621,0.00016602,2]
[366348152,1750200667976,-490.0,0.00016602,2]
[366348153,1750200667986,-160.488674,0.00016602,2]
[366348154,1750200667996,-490.0,0.00016602,2]
[366348155,1750200668006,-490.0,0.00016602,2]
[366348156,1750200668018,-504.42,0.00016602,2]
[366348157,1750200668028,-1851.45,0.00016602,2]
[366348158,1750200668038,-468.17028589,0.00016602,2]
[366348159,1750200668048,-385.20085855,0.00016602,2]
[366348160,1750200668059,-1063.06,0.00016602,2]
[366348161,1750200668069,-490.0,0.00016602,2]
[366348162,1750200668079,-460.0,0.00016602,2]
[366348163,1750200668089,-151.0,0.00016602,2]
[366348164,1750200668099,-490.0,0.00016602,2]
[366348165,1750200668110,-490.0,0.00016602,2]
[366348166,1750200668120,-1078.92,0.00016602,2]
[366348167,1750200668130,-2563.43,0.00016602,2]
[366348168,1750200668140,-1426.59,0.00016602,2]
[366348169,1750200668150,-998.47,0.00016602,2]
[366348170,1750200668160,-151.0,0.00016602,2]
[366348171,1750200668170,-151.0,0.00016602,2]
[366348172,1750200668180,-151.0,0.00016602,2]
[366348173,1750200668190,-151.0,0.00016602,2]
[366348174,1750200668200,-151.0,0.00016602,2]
[366348175,1750200668210,-151.0,0.00016602,2]
[366348176,1750200668220,-858.73,0.00016602,2]
[366348177,1750200668229,-151.0,0.00016602,2]
[366348178,1750200668239,-490.0,0.00016602,2]
[366348179,1750200668249,-4809.2,0.00016602,2]
[366348180,1750200668259,-151.0,0.00016602,2]
[366348181,1750200668270,-151.0,0.00016602,2]
[366348182,1750200668280,-490.0,0.00016602,2]
[366348183,1750200668290,-152.496414,0.00016602,2]
[366348184,1750200668300,-429.94200811,0.00016602,2]
[366348185,1750200668310,-490.0,0.00016602,2]
[366348186,1750200668320,-490.0,0.00016602,2]
[366348187,1750200668330,-726.15,0.00016602,2]
[366348188,1750200668340,-490.0,0.00016602,2]
[366348189,1750200668350,-490.0,0.00016602,2]
[366348190,1750200668359,-2202.37,0.00016602,2]
[366348191,1750200668370,-3732.93,0.00016602,2]
[366348192,1750200668379,-587.75,0.00016602,2]
[366348193,1750200668389,-1878.63,0.00016602,2]
[366348194,1750200668400,-927.86,0.00016602,2]
[366348195,1750200668410,-667.56,0.00016602,2]
[366348196,1750200668420,-490.0,0.00016602,2]
[366348197,1750200668431,-490.0,0.00016602,2]
[366348198,1750200668441,-490.0,0.00016602,2]
[366348199,1750200668451,-212.01211009,0.00016602,2]
[366348200,1750200668461,-861.0,0.00016602,2]
[366348201,1750200668471,-3427.99,0.00016602,2]
[366348202,1750200668481,-150.0,0.00016602,2]
[366348203,1750200668491,-3531.67,0.00016602,2]
[366348204,1750200668501,-1039.7,0.00016602,2]
[366348205,1750200668512,-609.45,0.00016602,2]
[366348206,1750200668522,-150.0,0.00016602,2]
[366348207,1750200668533,-490.0,0.00016602,2]
[366348208,1750200668543,-490.0,0.00016602,2]
[366348209,1750200668553,-490.0,0.00016602,2]
[366348210,1750200668563,-500.0,0.00016602,2]
[366348211,1750200668573,-924.78,0.00016602,2]
[366348212,1750200668584,-490.0,0.00016602,2]
[366348213,1750200668594,-150.0,0.00016602,2]
[366348214,1750200668604,-490.0,0.00016602,2]
[366348215,1750200668614,-833.95,0.00016602,2]
[366348216,1750200668625,-150.0,0.00016602,2]
[366348217,1750200668636,-1946.88,0.00016602,2]
[366348218,1750200668646,-2412.47,0.00016602,2]
[366348219,1750200668656,-2120.59,0.00016602,2]
[366348220,1750200668667,-490.0,0.00016602,2]
[366348221,1750200668677,-156.70110256,0.00016602,2]
[366348222,1750200668687,-6078.47,0.00016602,2]
[366348223,1750200668697,-500.0,0.00016602,2]
[366348224,1750200668707,-551.51,0.00016602,2]
[366348225,1750200668718,-1166.24,0.00016602,2]
[366348226,1750200668728,-908.79,0.00016602,2]
[366348227,1750200668739,-490.0,0.00016602,2]
[366348228,1750200668750,-1322.38,0.00016602,2]
[366348229,1750200668760,-150.0,0.00016602,2]
[366348230,1750200668770,-1724.49,0.00016602,2]
[366348231,1750200668782,-13837.34,0.00016602,2]
[366348232,1750200668794,-150.0,0.00016602,2]
[366348233,1750200668804,-490.0,0.00016602,2]